bitfinex-derivatives/quotes_ETHF0:USTF0_20260120
["timestamp","ask_amount","ask_price","bid_price","bid_amount"]
[1768868529879,0.81295944,3184.8,3183.6,0.14425916]
[1768868530178,0.15708,3185.1,3183.6,0.14425916]
[1768868530374,0.81302184,3185.0,3183.6,0.14425916]
[1768868530576,0.81302184,3184.9,3183.6,0.14425916]
[1768868530778,0.81302184,3184.8,3183.6,0.14425916]
[1768868530974,0.15708,3185.1,3183.6,0.14425916]
[1768868531177,0.81296463,3185.0,3183.6,0.14425916]
[1768868531475,0.81296463,3184.9,3183.6,0.14425916]
[1768868531672,0.15708,3185.1,3183.6,0.14425916]
[1768868531673,0.81296463,3184.8,3183.6,0.14425916]
[1768868531872,0.15708,3185.1,3183.6,0.14425916]
[1768868532083,0.81293361,3185.0,3183.6,0.14425916]
[1768868532280,0.81293361,3184.9,3183.6,0.14425916]
[1768868532486,0.81293361,3184.8,3183.6,0.14425916]
[1768868532687,1.1238819,3185.2,3183.6,0.14425916]
[1768868532982,0.81291908,3185.1,3183.6,0.14425916]
[1768868533187,0.81291908,3185.0,3183.6,0.14425916]
[1768868533485,0.81291908,3184.9,3183.6,0.14425916]
[1768868533783,0.81291908,3184.8,3183.6,0.14425916]
[1768868533985,1.1238819,3185.2,3183.6,0.14425916]
[1768868534174,0.81294991,3185.1,3183.6,0.14425916]
[1768868534377,1.2809419,3185.5,3183.9,0.14036263]
[1768868534684,0.81305349,3185.4,3183.9,0.14036263]
[1768868534887,0.81305349,3185.3,3183.9,0.14036263]
[1768868535086,0.81305349,3185.2,3183.9,0.14036263]
[1768868535286,0.15706,3185.5,3183.9,0.14036263]
[1768868535491,0.81312311,3185.4,3183.9,0.14036263]
[1768868535787,0.81312311,3185.3,3183.9,0.14036263]
[1768868535985,1.1238819,3185.7,3183.9,0.14036263]
[1768868536285,1.12292734,3185.6,3183.9,0.14036263]
[1768868536485,0.81317387,3185.5,3183.9,0.14036263]
[1768868536678,0.81317387,3185.4,3183.9,0.14036263]
[1768868536881,0.81317387,3185.3,3183.9,0.14036263]
[1768868537080,0.8134817,3185.2,3183.9,0.14036263]
[1768868537280,1.1238819,3185.6,3183.9,0.14036263]
[1768868537480,0.81357032,3185.5,3183.9,0.14036263]
[1768868537682,0.81357032,3185.4,3183.9,0.14036263]
[1768868537876,0.81357032,3185.3,3183.9,0.14036263]
[1768868538082,0.81357032,3185.2,3183.9,0.14036263]
[1768868538387,0.81364407,3185.1,3183.9,0.14036263]
[1768868538583,1.1238819,3185.5,3183.9,0.14036263]
[1768868538778,0.81369634,3185.4,3183.9,0.14036263]
[1768868538978,0.81369634,3185.3,3183.9,0.14036263]
[1768868539178,1.1238819,3185.5,3183.9,0.14036263]
[1768868539179,0.81369634,3185.2,3183.9,0.14036263]
[1768868539377,0.81369634,3185.1,3183.9,0.14036263]
[1768868539589,1.1238819,3185.5,3183.9,0.14036263]
[1768868539886,0.81369704,3185.4,3183.9,0.14036263]
[1768868540086,0.81369704,3185.3,3183.9,0.14036263]
[1768868540277,0.81369704,3185.2,3183.9,0.14036263]
[1768868540482,0.81369704,3185.1,3183.9,0.14036263]
[1768868540689,1.1238819,3185.5,3183.9,0.14036263]
[1768868540988,0.81369448,3185.4,3183.9,0.14036263]
[1768868541184,0.81369448,3185.3,3183.9,0.14036263]
[1768868541386,0.16751079,3184.6,3183.9,0.14036263]
[1768868541586,0.16972875,3184.6,3183.9,0.14036263]
[1768868541786,1.1238819,3185.5,3183.9,0.14036263]
[1768868542085,0.81369033,3185.4,3183.9,0.14036263]
[1768868542290,0.81369033,3185.3,3183.9,0.14036263]
[1768868542491,0.81369033,3185.2,3183.9,0.14036263]
[1768868542787,1.1238819,3185.7,3183.9,0.14036263]
[1768868542992,0.00303874,3185.2,3183.9,0.14036263]
[1768868545493,0.81408515,3185.1,3183.9,0.14036263]
[1768868545691,0.00303874,3185.2,3183.9,0.14036263]
[1768868545887,0.81408802,3185.1,3183.9,0.14036263]
[1768868546088,0.00303874,3185.2,3183.9,0.14036263]
[1768868546290,0.81409364,3185.1,3183.9,0.14036263]
[1768868546491,0.00303874,3185.2,3183.9,0.14036263]
[1768868546691,0.81421988,3185.1,3183.9,0.14036263]
[1768868546889,0.00303874,3185.2,3183.9,0.14036263]
[1768868547096,0.81420753,3185.1,3183.9,0.14036263]
[1768868547292,0.00303874,3185.2,3183.9,0.14036263]
[1768868547493,0.81434723,3185.1,3183.9,0.14036263]
[1768868547794,0.00303874,3185.2,3183.9,0.14036263]
[1768868547995,0.81435873,3185.1,3183.9,0.14036263]
[1768868548295,0.00303874,3185.2,3183.9,0.14036263]
[1768868548495,0.81452831,3185.1,3183.9,0.14036263]
[1768868548686,0.00303874,3185.2,3183.9,0.14036263]
[1768868548887,0.81452435,3185.1,3183.9,0.14036263]
[1768868549185,0.00303874,3185.2,3183.9,0.14036263]
[1768868549386,0.81471365,3185.1,3183.9,0.14036263]
[1768868549581,0.00303874,3185.2,3183.9,0.14036263]
[1768868549582,0.81473452,3185.0,3183.9,0.14036263]
[1768868549793,0.00303874,3185.2,3183.9,0.14036263]
[1768868549995,0.81473452,3185.1,3183.9,0.14036263]
[1768868550196,0.81473452,3185.0,3183.9,0.14036263]
[1768868550386,0.00303874,3185.2,3183.9,0.14036263]
[1768868550586,0.81475562,3185.1,3183.9,0.14036263]
[1768868550787,0.81475562,3185.0,3183.9,0.14036263]
[1768868550988,0.00303874,3185.2,3183.9,0.14036263]
[1768868551295,0.81475283,3185.1,3183.8,0.15714]
[1768868551482,0.81475283,3185.0,3183.8,0.15714]
[1768868551682,0.00303874,3185.2,3183.6,0.13942386]
[1768868551886,0.81478546,3185.1,3183.6,0.13942386]
[1768868552082,0.81478546,3185.0,3183.6,0.13942386]
[1768868552282,0.00303874,3185.2,3183.6,0.13942386]
[1768868552485,0.81481486,3185.1,3183.6,0.13942386]
[1768868552684,0.81481486,3185.0,3183.6,0.13942386]
[1768868552887,0.00303874,3185.2,3183.6,0.13942386]
[1768868553099,0.81482896,3185.1,3183.6,0.13942386]
[1768868553291,0.81482896,3185.0,3183.9,0.13552733]
[1768868553490,0.00303874,3185.2,3184.2,1.31566778]
[1768868553697,0.81483562,3185.1,3183.9,0.13552733]
[1768868553899,0.81483562,3185.0,3183.9,0.13552733]
[1768868554095,0.00303874,3185.2,3184.0,1.31566778]
[1768868554301,0.81498566,3185.1,3184.1,0.13552733]
[1768868554487,0.81498566,3185.0,3184.1,0.13552733]
[1768868554691,0.00303874,3185.2,3184.1,0.13552733]
[1768868554890,0.81514051,3185.1,3184.1,0.13552733]
[1768868555099,0.81514051,3185.0,3184.1,0.13552733]
[1768868555297,0.00303874,3185.2,3184.1,0.13552733]
[1768868555496,0.81543744,3185.1,3184.1,0.13552733]
[1768868555700,0.81543744,3185.0,3184.1,0.13552733]
[1768868555904,0.00303874,3185.2,3184.1,0.13552733]
[1768868556104,0.81554824,3185.1,3184.1,0.13552733]
[1768868556304,0.81554824,3185.0,3184.1,0.13552733]
[1768868556502,0.00303874,3185.2,3184.1,0.13552733]
[1768868556804,0.81563259,3185.1,3184.1,0.13552733]
[1768868557005,0.81563259,3185.0,3184.1,0.13552733]
[1768868557206,0.00303874,3185.2,3183.7,0.29266733]
[1768868557406,0.81563565,3185.1,3183.7,0.29266733]
[1768868557604,0.81563565,3185.0,3183.7,0.29266733]
[1768868557805,0.00303874,3185.2,3183.7,0.29266733]
[1768868558105,0.81566243,3185.1,3183.7,0.29266733]
[1768868559405,1.94258307,3185.2,3183.7,0.29266733]
[1768868559605,0.81566243,3185.1,3183.7,0.29266733]
[1768868561007,0.81566243,3185.1,3183.9,1.31620254]
[1768868566713,0.8707328,3185.1,3183.7,1.47334254]
[1768868566914,0.81566243,3185.0,3183.7,1.31620254]
[1768868567111,0.81566243,3184.9,3183.9,1.31620254]
[1768868567412,0.81566243,3184.8,3184.1,1.31620254]
[1768868567598,0.81566243,3184.7,3184.1,1.31620254]
[1768868567802,1.1238819,3185.1,3184.1,1.31620254]
[1768868568205,1.94026889,3185.1,3184.1,1.31620254]
[1768868568406,0.81638699,3185.0,3184.1,1.31620254]
[1768868568608,0.81638699,3184.9,3184.1,1.31620254]
[1768868568807,0.81638699,3184.8,3184.1,1.31620254]
[1768868569107,0.81638699,3184.7,3184.1,1.31620254]
[1768868569308,1.1238819,3185.1,3184.1,1.31620254]
[1768868569607,1.94029364,3185.1,3184.3,1.31620254]
[1768868569912,0.81642871,3185.0,3184.3,1.31620254]
[1768868570208,0.81642871,3184.9,3184.3,1.31620254]
[1768868570410,0.81642871,3184.8,3184.3,1.31620254]
[1768868570599,1.12692064,3185.2,3184.3,1.31620254]
[1768868570804,1.12730773,3185.1,3184.3,1.31620254]
[1768868570999,0.81641057,3185.0,3184.3,1.31620254]
[1768868571214,0.81641057,3184.9,3184.3,1.31620254]
[1768868571406,0.81641057,3184.8,3184.3,1.31620254]
[1768868571706,0.81641663,3184.7,3184.3,1.31620254]
[1768868571905,1.1238819,3185.1,3184.3,1.31620254]
[1768868572116,0.81641199,3185.0,3184.3,1.31620254]
[1768868572316,0.81641199,3184.9,3184.3,1.31620254]
[1768868572499,0.00303874,3185.2,3184.3,1.45319402]
[1768868573713,0.00303874,3185.2,3184.0,1.45075492]
[1768868574008,0.00303874,3185.2,3184.0,0.13455238]
[1768868574217,0.00303874,3185.2,3184.4,1.31620254]
[1768868578913,0.00303874,3185.2,3184.6,1.31620254]
[1768868579418,0.00303874,3185.2,3184.8,1.31620254]
[1768868579609,1.1238819,3185.7,3184.8,1.45075492]
[1768868579814,0.31082108,3185.6,3184.8,1.45075492]
[1768868580013,1.1238819,3185.7,3184.8,1.45075492]
[1768868580212,0.31087156,3185.6,3184.8,1.45075492]
[1768868580415,1.1238819,3185.7,3184.8,1.45075492]
[1768868580615,0.3109188,3185.6,3184.8,1.45075492]
[1768868580812,1.12729737,3185.7,3185.0,1.31620254]
[1768868581018,0.00341547,3185.7,3185.2,1.31620254]
[1768868581912,1.1238819,3186.1,3185.4,1.31620254]
[1768868582119,1.1238819,3186.4,3185.8,1.31620254]
[1768868582422,1.1238819,3186.6,3185.5,1.31620254]
[1768868582611,0.31065274,3186.5,3185.5,1.31620254]
[1768868582815,1.1238819,3186.6,3185.5,1.31620254]
[1768868583009,1.1238819,3186.6,3185.9,1.31620254]
[1768868583010,1.12792724,3186.6,3185.9,1.31620254]
[1768868583216,0.00404534,3186.6,3186.1,1.31620254]
[1768868583420,0.00404534,3186.6,3186.1,1.45075492]
[1768868583824,1.1238819,3187.3,3186.1,1.45075492]
[1768868584219,2.49452217,3187.4,3186.1,1.45075492]
[1768868584634,1.12562895,3187.3,3186.1,1.45075492]
[1768868584826,0.81556475,3187.2,3186.1,1.45075492]
[1768868586028,2.13176729,3187.2,3185.9,0.00273528]
[1768868586217,1.31620254,3186.8,3185.9,0.00273528]
[1768868589027,1.31620254,3186.6,3185.3,0.13455238]
[1768868589219,1.31620254,3186.6,3185.3,1.45075492]
[1768868590125,0.15699,3187.0,3185.9,1.31620254]
[1768868590328,0.80805415,3186.9,3185.9,1.31620254]
[1768868590628,0.80805415,3186.8,3185.9,1.31620254]
[1768868590929,0.15699,3187.0,3185.9,1.31620254]
[1768868591129,0.8080032,3186.9,3185.9,1.31620254]
[1768868591317,1.31620254,3186.7,3185.3,0.00357252]
[1768868591628,1.31620254,3186.3,3185.3,0.00357252]
[1768868591830,1.31620254,3186.5,3185.3,0.00357252]
[1768868593030,0.15699,3186.8,3185.5,1.31620254]
[1768868593224,0.80759479,3186.7,3185.6,1.31620254]
[1768868593530,1.47319254,3186.8,3185.5,1.31620254]
[1768868593830,0.80762472,3186.7,3185.5,1.31620254]
[1768868594031,1.47319254,3186.8,3185.5,1.31620254]
[1768868594228,1.31620254,3186.6,3185.3,1.45432744]
[1768868594528,1.31620254,3186.6,3185.3,0.00357252]
[1768868594830,1.31620254,3186.4,3185.3,0.00357252]
[1768868596040,1.31620254,3186.2,3185.3,0.00357252]
[1768868596335,0.80755858,3186.1,3185.3,0.00357252]
[1768868596528,1.31620254,3186.2,3185.3,0.00357252]
[1768868596728,0.8076332,3186.1,3185.3,0.00357252]
[1768868596930,1.31620254,3185.8,3184.5,0.13455238]
[1768868597431,1.31620254,3185.8,3184.4,1.31620254]
[1768868597835,0.04620936,3186.2,3184.1,0.29168238]
[1768868597836,1.31620254,3186.1,3184.8,1.31620254]
[1768868598131,1.31620254,3185.9,3184.8,0.00235904]
[1768868600329,0.20323936,3186.2,3184.8,0.00235904]
[1768868600330,1.31620254,3185.7,3184.8,0.00235904]
[1768868601134,1.31620254,3185.1,3183.8,0.13455238]
[1768868601524,1.31620254,3184.9,3183.8,0.13455238]
[1768868601837,1.31620254,3185.2,3183.9,1.31620254]
[1768868602043,0.80783838,3185.1,3183.9,1.31960122]
[1768868602341,0.00338093,3185.2,3184.1,1.31620254]
[1768868602541,0.8077542,3185.1,3183.9,0.13795106]
[1768868602736,0.00338093,3185.2,3184.1,1.31620254]
[1768868602939,0.80775408,3185.1,3184.1,1.31620254]
[1768868603139,0.00338093,3185.2,3184.1,1.31620254]
[1768868603332,0.80758966,3185.1,3184.1,1.31620254]
[1768868603641,0.00338093,3185.2,3183.9,0.00339868]
[1768868603835,0.80757021,3185.1,3183.9,1.31960122]
[1768868604032,0.00338093,3185.2,3184.1,1.31620254]
[1768868604234,0.80757133,3185.1,3184.1,1.31620254]
[1768868604439,0.00338093,3185.2,3184.1,1.31620254]
[1768868604634,0.80740038,3185.1,3184.1,1.31620254]
[1768868604834,0.00338093,3185.2,3184.1,1.31620254]
[1768868605039,0.80740038,3185.1,3184.1,1.31620254]
[1768868605234,0.00338093,3185.2,3184.3,1.31620254]
[1768868605434,0.00338093,3185.2,3184.6,1.31620254]
[1768868606235,1.1238819,3185.9,3185.0,1.31620254]
[1768868606437,0.8073384,3185.8,3185.0,1.31620254]
[1768868606637,0.15703,3186.1,3184.9,0.13551158]
[1768868606840,0.80739313,3186.0,3184.9,0.13551158]
[1768868607043,0.80739313,3185.9,3184.9,0.13551158]
[1768868607250,0.80739313,3185.8,3184.9,0.13551158]
[1768868607454,0.00291572,3185.9,3184.9,0.13551158]
[1768868609059,0.15698,3187.2,3184.9,0.13551158]
[1768868609060,1.2808619,3187.2,3184.9,0.13551158]
[1768868609259,1.11713824,3187.1,3184.9,0.13551158]
[1768868609459,1.11713824,3187.0,3184.9,0.13551158]
[1768868609755,0.80769554,3186.9,3184.9,0.13551158]
[1768868609960,0.80769554,3186.8,3184.9,0.13551158]
[1768868610163,0.80769554,3186.7,3184.9,0.13551158]
[1768868610352,0.80769554,3186.6,3184.9,0.13551158]
[1768868610553,0.00361505,3186.8,3184.9,0.13551158]
[1768868610759,0.80775102,3186.7,3184.9,0.13551158]
[1768868610959,0.80775102,3186.6,3184.9,0.13551158]
[1768868611259,0.00361505,3186.8,3184.9,0.13551158]
[1768868611459,0.8075833,3186.7,3184.9,0.13551158]
[1768868611658,0.8075833,3186.6,3184.9,0.13551158]
[1768868611854,0.00361505,3186.8,3184.9,0.13551158]
[1768868612054,0.80758327,3186.7,3184.9,0.13551158]
[1768868612255,0.80758327,3186.6,3184.9,0.13551158]
[1768868612560,0.00361505,3186.8,3184.9,0.13551158]
[1768868612866,0.80756372,3186.7,3184.9,0.13551158]
[1768868613165,0.80756372,3186.6,3184.9,0.13551158]
[1768868613357,0.00361505,3186.8,3184.9,0.13551158]
[1768868613657,0.80757762,3186.7,3184.9,0.13551158]
[1768868613854,0.80757762,3186.6,3184.9,0.13551158]
[1768868614056,0.00361505,3186.8,3184.9,0.13551158]
[1768868614356,0.80771848,3186.7,3184.9,0.13551158]
[1768868614559,0.80771848,3186.6,3184.9,0.13551158]
[1768868614861,0.00361505,3186.8,3184.2,2.05141023]
[1768868614862,0.15701,3186.4,3184.5,0.13551158]
[1768868615051,0.80771848,3186.3,3184.5,0.13551158]
[1768868616958,0.96473848,3186.3,3184.5,0.13551158]
[1768868617162,0.80771848,3186.2,3184.5,0.13551158]
[1768868617657,1.93160038,3186.2,3184.5,0.13551158]
[1768868617967,0.04408219,3186.0,3184.2,0.15712]
[1768868618266,0.04408219,3185.8,3184.0,0.13551158]
[1768868618460,0.80771848,3185.7,3184.0,0.13551158]
[1768868618661,0.80771848,3185.6,3184.0,0.13551158]
[1768868618962,0.80771848,3185.5,3184.0,0.13551158]
[1768868619265,0.80771848,3185.4,3184.0,0.13551158]
[1768868619559,1.32500409,3185.8,3184.0,0.13551158]
[1768868619764,0.80824158,3185.7,3184.0,0.13551158]
[1768868619966,0.80824158,3185.6,3184.0,0.13551158]
[1768868620167,0.80824158,3185.5,3184.0,0.13551158]
[1768868620365,0.80824158,3185.4,3184.0,0.13551158]
[1768868620564,1.32500409,3185.8,3184.0,0.13551158]
[1768868620767,0.80826344,3185.7,3184.0,0.13551158]
[1768868620964,0.80826344,3185.6,3184.0,0.13551158]
[1768868621167,0.80826344,3185.5,3184.0,0.13551158]
[1768868621368,1.32500409,3185.8,3184.0,0.13551158]
[1768868621369,0.80826344,3185.4,3184.0,0.13551158]
[1768868621570,1.32500409,3185.8,3184.0,0.13551158]
[1768868621760,0.80832583,3185.7,3184.0,0.13551158]
[1768868621961,0.80832583,3185.6,3184.0,0.13551158]
[1768868622169,0.80832583,3185.5,3184.0,0.13551158]
[1768868622366,0.80832583,3185.4,3184.0,0.13551158]
[1768868622668,1.32500409,3185.8,3184.0,0.13551158]
[1768868622862,0.80835503,3185.7,3184.0,0.13551158]
[1768868623170,0.80835503,3185.6,3184.0,0.13551158]
[1768868623367,0.80835503,3185.5,3184.0,0.13551158]
[1768868623568,0.80835503,3185.4,3184.0,0.13551158]
[1768868623769,1.32500409,3185.8,3184.0,0.13551158]
[1768868623970,0.80849727,3185.7,3184.0,0.13551158]
[1768868624173,0.80849727,3185.6,3184.0,0.13551158]
[1768868624466,0.80849727,3185.5,3184.0,0.13551158]
[1768868624772,0.80849727,3185.4,3184.0,0.13551158]
[1768868624973,1.2809219,3185.8,3184.0,0.13551158]
[1768868625177,0.808793,3185.7,3184.0,0.13551158]
[1768868625375,0.808793,3185.6,3184.0,0.13551158]
[1768868625672,0.808793,3185.5,3184.0,0.13551158]
[1768868625971,0.808793,3185.4,3184.0,0.13551158]
[1768868626174,1.2809219,3185.8,3184.0,0.13551158]
[1768868626374,0.80890363,3185.7,3184.0,0.13551158]
[1768868626573,0.80890363,3185.6,3184.0,0.13551158]
[1768868626773,0.80890363,3185.5,3184.0,0.13551158]
[1768868626971,0.80890363,3185.4,3184.0,0.13551158]
[1768868627165,1.2809219,3185.8,3184.0,0.13551158]
[1768868627362,0.80888857,3185.7,3184.0,0.13551158]
[1768868627574,0.80888857,3185.6,3184.0,0.13551158]
[1768868627876,1.2809219,3185.8,3184.0,0.13551158]
[1768868627877,0.80888857,3185.5,3184.0,0.13551158]
[1768868628176,0.80888857,3185.4,3184.0,0.13551158]
[1768868628377,1.2809219,3185.8,3184.0,0.13551158]
[1768868628574,0.80887291,3185.7,3184.0,0.13551158]
[1768868628774,0.80887291,3185.6,3184.0,0.13551158]
[1768868628977,0.80887291,3185.5,3184.0,0.13551158]
[1768868629274,0.80887291,3185.4,3184.0,0.13551158]
[1768868629476,1.2809219,3185.8,3184.0,0.13551158]
[1768868629773,0.80909535,3185.7,3184.0,0.13551158]
[1768868629974,0.80909535,3185.6,3184.0,0.13551158]
[1768868630277,0.80909535,3185.5,3184.0,0.13551158]
[1768868630479,0.80909535,3185.4,3184.0,0.13551158]
[1768868630678,1.2809219,3185.8,3184.0,0.13551158]
[1768868630869,0.80909353,3185.7,3184.0,0.13551158]
[1768868631066,0.80909353,3185.6,3184.0,0.13551158]
[1768868631377,0.80909353,3185.5,3184.0,0.13551158]
[1768868631568,0.80909353,3185.4,3184.0,0.13551158]
[1768868631774,2.59685503,3185.8,3184.0,0.13551158]
[1768868631974,0.80887324,3185.7,3184.0,0.13551158]
[1768868632168,0.80887324,3185.6,3184.0,0.13551158]
[1768868632372,0.80887324,3185.5,3184.0,0.13551158]
[1768868632578,0.80887324,3185.4,3184.0,0.13551158]
[1768868632776,0.80887324,3185.3,3184.0,0.13551158]
[1768868632971,0.04420068,3185.6,3184.0,0.13551158]
[1768868633172,0.80919812,3185.5,3184.0,0.13551158]
[1768868633370,0.80919812,3185.4,3184.0,0.13551158]
[1768868633570,0.04420068,3185.6,3184.0,0.13551158]
[1768868633571,0.80919812,3185.3,3184.0,0.13551158]
[1768868633768,0.04420068,3185.6,3184.0,0.13551158]
[1768868634072,0.80924757,3185.5,3184.0,0.13551158]
[1768868634272,0.80924757,3185.4,3184.0,0.13551158]
[1768868634473,0.80924757,3185.3,3184.0,0.13551158]
[1768868634777,0.04420068,3185.6,3184.0,0.13551158]
[1768868634978,0.80934293,3185.5,3184.0,0.13551158]
[1768868635277,0.80934293,3185.4,3184.0,0.13551158]
[1768868635478,0.80934293,3185.3,3184.0,0.13551158]
[1768868635677,0.04420068,3185.6,3184.0,0.13551158]
[1768868635876,0.8094469,3185.5,3184.0,0.13551158]
[1768868636077,1.1238819,3185.5,3184.0,0.13551158]
[1768868636279,0.8094469,3185.4,3184.0,0.13551158]
[1768868636466,0.8094469,3185.3,3184.0,0.13551158]
[1768868636671,0.8094469,3185.2,3183.9,0.00339868]
[1768868636873,0.8094469,3185.1,3183.9,0.00339868]
[1768868637072,0.80930087,3185.0,3183.9,0.00339868]
[1768868637374,1.16847252,3185.4,3183.9,0.00339868]
[1768868637578,0.80918694,3185.3,3183.9,0.00339868]
[1768868637774,0.85382469,3185.2,3183.9,0.00339868]
[1768868637969,0.80918694,3185.1,3183.9,0.00339868]
[1768868638173,0.80918694,3185.0,3183.9,0.00339868]
[1768868638383,1.2809419,3185.4,3183.9,0.00339868]
[1768868638583,0.80912054,3185.3,3183.9,0.00339868]
[1768868638777,1.2809419,3185.4,3183.9,0.00339868]
[1768868638778,0.80912054,3185.2,3183.9,0.00339868]
[1768868638977,0.80912054,3185.1,3183.9,0.00339868]
[1768868639180,0.80912054,3185.0,3183.9,0.00339868]
[1768868639376,1.32556231,3185.4,3183.9,0.00339868]
[1768868639582,0.04462041,3185.2,3183.9,0.00339868]
[1768868639771,0.80922387,3185.1,3183.9,0.00339868]
[1768868639975,0.80922387,3185.0,3183.9,0.00339868]
[1768868640176,0.80922387,3184.9,3183.9,0.00339868]
[1768868640475,0.80944844,3184.8,3183.9,0.00339868]
[1768868640684,0.15708,3185.1,3183.9,0.00339868]
[1768868640983,0.80945281,3185.0,3183.9,0.00339868]
[1768868641183,0.80945281,3184.9,3183.9,0.00339868]
[1768868641376,0.80945281,3184.8,3183.9,0.00339868]
[1768868641578,0.15708,3185.1,3183.9,0.00339868]
[1768868641777,0.80958352,3185.0,3183.9,0.00339868]
[1768868641979,0.80958352,3184.9,3183.9,0.00339868]
[1768868642281,0.80958352,3184.8,3183.9,0.13542712]
[1768868642584,1.1238819,3185.2,3183.9,0.13542712]
[1768868642780,0.80985799,3185.1,3183.9,0.13542712]
[1768868642982,0.80985799,3185.0,3183.9,0.13542712]
[1768868643182,0.80985799,3184.9,3183.9,0.13542712]
[1768868643382,0.80985799,3184.8,3183.9,0.13542712]
[1768868643584,1.1238819,3185.2,3183.9,0.13542712]
[1768868643783,0.81012492,3185.1,3183.9,0.13542712]
[1768868643983,0.81012492,3185.0,3183.9,0.13542712]
[1768868644180,0.81012492,3184.9,3183.9,0.13542712]
[1768868644385,0.81012492,3184.8,3183.9,0.00339868]
[1768868644583,1.1238819,3185.1,3183.9,0.00339868]
[1768868644584,0.81012492,3184.7,3183.9,0.00339868]
[1768868644785,1.1238819,3185.1,3183.9,0.00339868]
[1768868645088,0.81217545,3185.0,3183.9,0.00339868]
[1768868645386,0.81217545,3184.9,3183.9,0.00339868]
[1768868645582,0.81217545,3184.8,3183.9,0.00339868]
[1768868645787,0.81217545,3184.7,3183.9,0.00339868]
[1768868645985,1.1238819,3185.1,3183.9,0.00339868]
[1768868646186,2.24664668,3185.0,3183.9,0.00339868]
[1768868646386,0.81227411,3184.9,3183.9,0.00339868]
[1768868646586,0.81227411,3184.8,3183.9,0.00339868]
[1768868646892,0.81227411,3184.7,3183.9,0.13542712]
[1768868647089,1.1238819,3185.2,3183.9,0.13542712]
[1768868647290,0.31060404,3185.1,3183.9,0.13542712]
[1768868647486,1.93660374,3185.1,3183.9,0.13542712]
[1768868647689,0.81272184,3185.0,3183.9,0.13542712]
[1768868647890,0.81272184,3184.9,3183.9,0.13542712]
[1768868648090,0.81272184,3184.8,3183.9,0.13542712]
[1768868648396,0.81272184,3184.7,3183.9,0.13542712]
[1768868648591,1.1238819,3185.1,3183.9,0.13542712]
[1768868656785,2.24731689,3185.0,3183.9,0.13542712]
[1768868656990,0.8127732,3184.9,3183.9,0.13542712]
[1768868657186,0.8127732,3184.8,3183.9,0.13542712]
[1768868657390,0.8127732,3184.7,3183.9,0.13542712]
[1768868657590,0.8127732,3184.6,3183.9,0.13542712]
[1768868657791,1.1238819,3185.0,3183.9,0.13542712]
[1768868659498,1.1238819,3185.0,3183.9,0.00339868]
[1768868660095,0.31076335,3184.9,3183.9,0.00339868]
[1768868660301,1.93673406,3184.9,3183.9,0.00339868]
[1768868660504,0.81285216,3184.8,3183.9,0.00339868]
[1768868660997,0.8528521,3184.8,3183.1,0.13202844]
[1768868661205,2.24751097,3184.7,3183.1,0.13202844]
[1768868661501,0.81285216,3184.6,3183.1,0.13202844]
[1768868661702,0.81285216,3184.5,3183.1,0.13202844]
[1768868661996,0.81285216,3184.4,3183.1,0.13472703]
[1768868662201,0.81285216,3184.3,3183.1,0.13472703]
[1768868662406,0.81309739,3184.2,3183.1,0.00269859]
[1768868662600,0.81309739,3184.1,3183.1,0.00269859]
[1768868662803,0.81309739,3184.0,3183.1,0.00269859]
[1768868663004,0.81309739,3183.9,3183.1,0.00269859]
[1768868663298,1.32086993,3184.4,3183.1,0.00269859]
[1768868663603,0.81268175,3184.3,3183.1,0.00269859]
[1768868663807,0.81268175,3184.2,3183.1,0.14365344]
[1768868664001,0.81268175,3184.1,3183.1,0.14365344]
[1768868664204,0.81268175,3184.0,3183.1,0.14365344]
[1768868664407,1.12634117,3184.5,3183.1,0.14365344]
[1768868664603,1.12634117,3184.5,3181.9,0.14095485]
[1768868664604,1.3536179,3183.7,3181.9,0.14095485]
[1768868664799,0.81249999,3183.6,3182.8,0.14095485]
[1768868664993,1.2810019,3184.4,3182.8,0.14095485]
[1768868665194,1.1238819,3184.2,3182.3,0.14095485]
[1768868665400,1.12297705,3184.1,3182.3,0.14095485]
[1768868665693,2.24685895,3184.0,3182.4,0.14095485]
[1768868665898,0.8124448,3183.9,3182.4,0.14095485]
[1768868666098,0.8124448,3183.8,3182.4,0.14095485]
[1768868666312,0.8124448,3183.7,3182.3,0.14356553]
[1768868667008,0.84975671,3183.7,3182.3,0.00261068]
[1768868667195,0.31013081,3183.6,3182.3,0.00261068]
[1768868667398,0.8124448,3183.5,3182.3,0.00261068]
[1768868667704,0.03476658,3183.3,3181.5,0.14095485]
[1768868667901,0.03476658,3183.3,3181.6,0.14095485]
[1768868667902,0.8124448,3183.2,3181.6,0.14095485]
[1768868668301,0.8124448,3183.1,3181.6,0.14095485]
[1768868668508,0.8124448,3183.0,3181.6,0.14095485]
[1768868668703,1.1238819,3183.6,3181.6,0.14095485]
[1768868668704,0.15716,3183.4,3181.6,0.14485581]
[1768868669010,0.82666835,3183.3,3181.6,0.14485581]
[1768868669195,0.03475449,3183.1,3181.6,0.00390096]
[1768868669401,0.82666835,3183.0,3181.6,0.00390096]
[1768868669596,0.03475449,3183.2,3181.6,0.00390096]
[1768868669808,0.86420073,3183.1,3181.6,0.00390096]
[1768868670112,0.82600398,3183.0,3181.6,0.00390096]
[1768868671314,0.03819675,3183.1,3181.6,0.00390096]
[1768868671512,1.31593313,3182.9,3181.6,0.00390096]
[1768868671704,1.35411793,3182.9,3181.6,0.00390096]
[1768868672413,0.0383602,3182.8,3181.6,0.00390096]
[1768868673207,0.03834851,3183.3,3181.6,0.00390096]
[1768868673408,0.82457457,3183.2,3181.6,0.14485581]
[1768868673607,0.82457457,3183.1,3181.6,0.14485581]
[1768868673817,0.82457457,3183.0,3181.6,0.14485581]
[1768868674010,0.03834851,3183.3,3181.6,0.14485581]
[1768868674211,0.8242214,3183.2,3181.6,0.14485581]
[1768868674410,0.8242214,3183.1,3181.6,0.14485581]
[1768868674707,0.03834851,3183.3,3181.6,0.00390096]
[1768868674708,1.31593313,3182.7,3181.6,0.00390096]
[1768868675108,0.03474943,3182.2,3180.5,0.14095485]
[1768868676004,0.00255206,3182.2,3180.8,0.14095485]
[1768868681619,1.31593313,3182.1,3180.5,0.00382041]
[1768868682120,0.1953074,3182.2,3180.5,0.14532325]
[1768868683026,1.31902878,3181.9,3180.5,1.46435203]
[1768868683316,0.1953074,3182.2,3180.5,1.46435203]
[1768868683521,1.31902878,3182.0,3180.5,1.46435203]
[1768868683721,1.31902878,3182.0,3180.7,1.31902878]
[1768868683922,1.31902878,3182.0,3180.5,0.14532325]
[1768868684124,1.31902878,3181.8,3180.5,1.46435203]
[1768868684724,0.1953074,3182.2,3180.5,1.46435203]
[1768868685025,1.31902878,3181.9,3180.5,1.46435203]
[1768868685720,0.1953074,3182.2,3180.5,1.46435203]
[1768868685926,1.47880084,3182.2,3180.8,1.31902878]
[1768868686328,1.47880084,3182.2,3180.5,0.14532325]
[1768868686526,1.31902878,3182.1,3180.7,1.46053162]
[1768868687320,0.00255206,3182.2,3181.1,1.31902878]
[1768868687721,0.00255206,3182.2,3181.3,1.31902878]
[1768868691624,0.00255206,3182.2,3181.4,0.14150284]
[1768868691829,0.00255206,3182.2,3181.5,1.31902878]
[1768868692220,0.00018808,3182.2,3181.7,1.46053162]